{"text_format":"1","workbook":"xlsx","n_sheets":15,"sheets":["NAVODILA","SPLOŠNO","UPORABNIKI","PODPROGRAMI","KADRI","FINANCE","POTREBE","NAVODILA EVAPRO","EVALVACIJA","KAPACITETE 1","KAPACITETE 2","matrika","DRUGO","DRUGO E","matrika_3"],"not_rendered":{"charts":0,"images":0,"macros":1,"external_links":0,"defined_names":11,"comments":0,"pivot_tables":0},"unopened":[],"bounds":{"document_bytes":16777216,"sheet_cells":100000,"rows_first":2000,"rows_last":500,"rows_between":2000,"halvings":0,"cell_chars":16384,"cell_head_chars":4096},"cells_cut":0,"cells_raw":0,"read":"whole","date_system":"1900"}

{"sheet":"NAVODILA","index":0,"n_rows":121,"n_cols":11,"rows_kept":121,"cut":false,"hidden":false,"merged":[[0,0,0,8],[2,1,2,7],[4,1,4,7],[20,1,20,7],[5,1,5,5]]}
["NAVODILA ZA IZPOLNJEVANJE"]
[]
[null,"Spoštovani, \npred vami je posodobljen obrazec za poročanje - Končno poročilo o izvajanju socialnovarstvenega programa v obdobju od 1. 1. 2021 do 31. 12. 2021.\n\nObrazec vsebuje več listov, in sicer odvisno od vrste programa:\n- splošno, uporabniki, podprogrami, kadri, finance, evalvacija (opcijsko), kapacitete (opcijsko), drugo.\n\nPOMEMBNO: Pri izpolnjevanju vas prosimo, da odgovarjate v za to namenjene celice (sive barve). Celice, označene z zeleno barvo so avtomatski seštevki oz. preverjanje, teh celic ne spreminjajte; celice, označene z rumeno barvo pa določajo izpolnitev kot izbirni seznam (kliknite na puščico v celici).\n\nV primeru tehničnih težav se lahko obrnete na IRSSV, in sicer na e-pošto: svp.irssv@siol.net ali na telefon: 01 2000 258 (Mateja Černič) oz. 01 2000 259 (Vid Žiberna). Če vam e-pošto zavrača, pri pošiljanju naredite stisnjeno datoteko zbirnika (npr.: .zip, .rar ipd)."]
[]
[null,"ZAČETEK: Prosimo, izberite skupino in podskupino vašega programa, za tem označite, ali je vaš program verifirican oz. vključen v sistem EVAPRO. Ko boste označili vse korake, se vam bodo odprli zavihki za izpolnjevanje."]
[null,"Opomba: V kolikor niste prepričani, v katero podskupino spada program, pustite prazno oz. preverite v končnem poročilu na",null,null,null,null,"POVEZAVI"]
[]
[]
[]
[null,null,"KORAK 1",null,"KORAK 2",null,"KORAK 3"]
[null,null,"Prosimo, najprej izberite vašo skupino programov:",null,"Prosimo, izberite vašo podskupino programov:",null,"Ali je vaš program verificiran in/ali vključen v sistem EVAPRO?"]
[]
[]
[]
[]
[]
[]
[]
[]
[]
[null,"KONEC: Ko boste z izpolnjevanjem končali, kliknite na spodnji gumb \"NATISNI\" in se bo obrazec avtomatsko shranil v PDF datoteko."]
[]
[]
[]
[]
[]
[]
[]
[]
[]
[]
[]
[]
[]
[]
[]
[]
[]
[]
[]
[]
[]
[]
[]
[]
[]
[]
[]
[]
[]
[]
[]
[]
[]
[]
[]
[]
[]
[]
[]
[]
[]
[]
[]
[]
[]
[]
[]
[]
[]
[]
[]
[]
[]
[]
[]
[]
[]
[]
[]
[]
[]
[]
[]
[]
[]
[]
[]
[]
[]
[]
[]
[]
[]
[]
[]
[]
[]
[]
[]
[]
[]
[]
[]
[]
[]
[]
[]
[]
[]
[]
[]
[]
[]
[null,"NASILJE","ZASVOJENI","DUŠEVNO_ZDRAVJE","BREZDOMCI","OTROCI_MLADOSTNIKI","STAREJŠI","INVALIDI","PSIHOSOCIALNA_POMOČ","ROMI","DRUGI_PROGRAMI"]
[null,"MATERINSKI DOMOVI","PREPOVEDANE DROGE – VISOKI PRAG","STANOVANJSKE SKUPINE","NAMESTITVENI PROGRAMI","DNEVNI CENTRI ZA OTROKE IN MLADOSTNIKE S PREVENTIVNIM DELOM IN SVETOVANJEM","MEDGENERACIJSKA SREDIŠČA","PROGRAMI OSEBNE ASISTENCE IN MREŽE SPREMLJEVALCEV","SPECIALIZIRANI PROGRAMI PSIHOSOCIALNE POMOČI OTROKOM, ODRASLIM ALI DRUŽINAM","PROGRAMI ZA ROME","DRUGI PROGRAMI"]
[null,"VARNE HIŠE, ZATOČIŠČA IN KRIZNI CENTRI","PREPOVEDANE DROGE - NIZKI PRAG","DNEVNI CENTRI","DNEVNI PROGRAMI","PREVENTIVNI PROGRAMI","PROGRAMI ZA STAREJŠE","PROGRAMI ZA SPODBUJANJE SOCIALNE VKLJUČENOSTI IN NEODVISNEGA ŽIVLJENJA INVALIDOV"]
[null,"SVETOVALNICE","PREPOVEDANE DROGE – PREVENTIVNI PROGRAMI","INFORMACIJSKE PISARNE IN SVETOVALNICE","DELOŽACIJE","PROGRAMI TELEFONSKEGA SVETOVANJA","PROGRAMI ZA OSEBE Z DEMENCO IN NJIHOVE SVOJCE"]
[null,"PROGRAMI PREVENTIVE","ALKOHOLIZEM","PROGRAMI TELEFONSKEGA SVETOVANJA"]
[null,"PROGRAMI TELEFONSKEGA SVETOVANJA","MOTNJE HRANJENJA","ZAGOVORNIŠTVO"]
[null,null,"PREPREČEVANJE PREKOMERNE RABE IKT"]

{"sheet":"SPLOŠNO","index":1,"n_rows":25,"n_cols":3,"rows_kept":25,"cut":false,"hidden":true,"merged":[[24,1,24,2],[1,1,3,2],[0,1,0,3]]}
[null,"Končno poročilo o izvajanju socialnovarstvenega programa \nv obdobju od 1. 1. 2021 do 31. 12. 2021"]
[null,"PROSIMO, DA POROČILO IZPOLNJUJETE KRATKO IN JEDRNATO, DRŽITE SE NAVODIL IN NE SPREMINJAJTE STRUKTURE OBRAZCA.\nIzpolnjen obrazec natisnite s klikom na gumb \"NATISNI V PDF\", ga podpišite \nin posredujte na MDDSZ po redni pošti na: MDDSZ, Štukljeva cesta  44, 1000 Ljubljana\nIzpolnjen končni obrazec v Excelu posredujte na IRSSV samo po elektronski pošti na: svp.irssv@siol.net"]
[]
[]
[]
[null,"Skupina, podskupina, evalvacija:",{"$f":"Skupina&\"; \"&NAVODILA!E16&\"; \"&NAVODILA!G16","v":"; ; "}]
[null,"Vrsta programa (izberite iz seznama):"]
[null,"Obdobje financiranja (izberite iz seznama):"]
[null,"Izvajalec programa:"]
[null,"Naslov programa: "]
[null,"Številka sklenjene pogodbe: "]
[null,"Naslov izvajalca:"]
[null,"Telefon izvajalca:                                                 "]
[null,"Elektronski naslov:"]
[null,"Spletna stran (opcijsko):"]
[null,"Tip organizacije, v kateri se izvaja program (izberite iz seznama):"]
[null,"Navedite kraje oz. enote, kjer se program izvaja:\nČe se program v enem kraju izvaja na več lokacijah, navedite tudi število lokacij (npr. Ljubljana (3), Maribor (2), Koper, Celje):"]
[null,"Skupno število lokacij, kjer se izvaja program:"]
[null,"Navedite skrbnika pogodbe na MDDSZ (naveden v pogodbi):"]
[]
[null,"Kraj in datum:"]
[]
[null,"Strokovni vodja programa + odgovorna oseba\n(navedite osebe in podpišite ter ožigosajte):"]
[]
[null,"Rok za predložitev končnega poročila: 15. 2. 2022"]

{"sheet":"UPORABNIKI","index":2,"n_rows":84,"n_cols":5,"rows_kept":84,"cut":false,"hidden":true,"merged":[[82,2,82,3],[83,3,83,8],[76,2,76,3],[77,2,77,3],[78,2,78,3],[79,2,79,3],[80,2,80,3],[81,2,81,3],[75,2,75,3],[67,1,67,2],[67,4,67,8],[68,1,68,2],[68,4,68,8],[69,1,69,2],[69,4,69,8],[70,1,70,2],[70,4,70,8],[71,1,71,2],[71,4,71,8],[74,1,74,8],[66,4,66,8],[58,1,58,2],[58,3,58,8],[59,1,59,2],[59,3,59,8],[60,1,60,2],[60,3,60,8],[61,1,61,2],[61,3,61,8],[62,1,62,2],[62,3,62,8],[65,1,65,8],[57,1,57,8],[52,1,52,3],[53,1,53,3],[54,1,54,2],[54,3,54,4],[51,1,51,3],[32,1,32,8],[44,1,44,8],[45,1,45,3],[46,1,46,3],[47,1,47,3],[48,1,48,3],[49,1,49,3],[50,1,50,3],[33,1,33,2],[40,1,40,2],[34,1,35,1],[36,1,39,1],[41,1,41,2],[41,3,41,4],[28,1,28,8],[29,1,29,8],[25,1,25,8],[0,0,0,9],[2,1,2,8],[3,1,3,2],[4,1,4,2],[5,1,5,2],[6,1,6,2],[7,1,7,2],[7,3,7,8],[8,1,8,2],[10,1,10,8]]}
["VSEBINSKO POROČILO - UPORABNIKI - za obdobje od 1. 1. 2021 do 31. 12. 2021"]
[]
[1,"Prosimo, navedite skupno število vseh (različnih) uporabnikov glavnega programa in v podprogramih, en uporabnik se šteje samo enkrat na leto. Navedite tudi predvideno število uporabnikov, kot ste jih navedli v prijavi na javni razpis. Opredelite navedbo števila uporabnikov ter primerjavo s številom uporabnikov, navedenih v prijavi."]
[null,"Skupaj število različnih uporabnikov"]
[null,"Število uporabnikov v t. i. GLAVNEM programu"]
[null,"Število uporabnikov v PODPROGRAMIH"]
[null,"Predvideno število uporabnikov v prijavi na razpis"]
[null,"Opredelite oz. pojasnite predvideno število v primerjavi z dejanskim številom uporabnikov:"]
[]
[]
[2,"Prosimo, navedite število vključenih uporabnikov po mesecih ter povprečno število ur aktivne* vključenosti uporabnikov v posamezne dejavnosti programa na mesec, ki so vključeni v t. i. glavni del programa."]
[null,"Mesec","Število uporabnikov","Povprečno število ur aktivne* vključenosti enega uporabnika na mesec"]
[null,"januar "]
[null,"februar "]
[null,"marec "]
[null,"april "]
[null,"maj "]
[null,"junij "]
[null,"julij"]
[null,"avgust"]
[null,"september"]
[null,"oktober"]
[null,"november"]
[null,"december"]
[null,"Povprečno število na mesec",{"$f":"AVERAGE(C13:C24)","v":{"$error":"#DIV/0!"}},{"$f":"AVERAGE(D13:D24)","v":{"$error":"#DIV/0!"}}]
[null,"Opomba:\n*Aktivna vključenost pomeni, da je uporabnik aktivno vključen v dejavnosti programa. Torej pri programih, ki uporabnikom nudijo bivanje, ne vpisujete 720 ur na mesec, ampak število ur aktivne vključenosti uporabnika v program na mesec."]
[]
[]
["2a","V primeru odstopanja števila uporabnikov prosimo, navedite pojasnilo."]
[]
[]
[]
[3,"Prosimo, navedite število uporabnikov GLAVNEGA programa glede na spol in starost. Prosimo zapišite oceno, če nimate točnih podatkov."]
[null,"Starostna skupina",null,"Število moških","Število žensk"]
[null,"MLADOLETNI","do vključno 15 let"]
[null,null,"nad 15 let do 18 let"]
[null,"POLNOLETNI","nad 18 let do 35 let"]
[null,null,"nad 35 let do 50 let"]
[null,null,"nad 50 let do 65 let"]
[null,null,"nad 65 let"]
[null,"Skupaj uporabnikov GLAVNEGA programa ",null,{"$f":"SUM(D35:D40)","v":0},{"$f":"SUM(E35:E40)","v":0}]
[null,"Ujemanje s prvo preglednico: ","Ujemanje: ",{"$f":"IF((D5=(D41+E41)),\"SEŠTEVEK SE UJEMA\",\"SEŠTEVEK SE NE UJEMA - PREVERITE\")","v":"SEŠTEVEK SE UJEMA"}]
[]
[]
[4,"Prosimo, navedite število uporabnikov glede na čas/obdobje njihove vključitve v program. Upoštevajte vse uporabnike. Seštevek uporabnikov mora tako biti enak podatku različnih uporabnikov iz prve preglednice. Prosimo zapišite oceno, če nimate točnih podatkov."]
[null,"Število uporabnikov, ki so program obiskovali/bili vključeni…",null,null,"Število uporabnikov"]
[null,"vsak dan ali petkrat na teden"]
[null,"enkrat ali večkrat na teden, vendar ne vsak (delovni) dan"]
[null,"večkrat/nekajkrat na mesec"]
[null,"enkrat na mesec"]
[null,"nekajkrat na leto"]
[null,"enkrat na leto"]
[null,"uporabniki, za katere ni znano, kako pogosto so obiskovali/bili vključeni v program"]
[null,"Skupaj število različnih uporabnikov ",null,null,{"$f":"SUM(E47:E53)","v":0}]
[null,"Ujemanje s prvo preglednico: ","Ujemanje: ",{"$f":"IF((D4=(E54)),\"SEŠTEVEK SE UJEMA\",\"SEŠTEVEK SE NE UJEMA - PREVERITE\")","v":"SEŠTEVEK SE UJEMA"}]
[]
[]
[5,"Prosimo, opredelite ciljno skupino uporabnikov - značilnosti uporabnikov, ki jim je program namenjen:"]
[null,"po spolu"]
[null,"po starostnih skupinah"]
[null,"družinske razmere in socialno omrežje"]
[null,"glede na težavo(e), ki jo/jih imajo"]
[null,"druge pomembne značilnosti"]
[]
[]
[6,"Ali vam je uspelo vključiti tisto skupino uporabnikov, za katero ste program načrtovali? Prosimo, označite, ali vam je uspelo ali ne - v primeru, da vam ni uspelo, pojasnite, zakaj ne."]
[null,null,null,"izberite ustrezen odgovor","Če vam ni uspelo vključiti ciljne skupine, prosimo, navedite razloge:"]
[null,"po spolu"]
[null,"po starostnih skupinah"]
[null,"družinske razmere in socialno omrežje"]
[null,"glede na težavo(e), ki jo/jih imajo"]
[null,"druge pomembne značilnosti"]
[]
[]
[7,"Prosimo, označite, na kakšen način se uporabniki vključujejo v vaš program (kdo jih je napotil oz. kje so našli informacijo o vašem programu). Prosimo, označite 3 najbolj pogoste odgovore (obkljukajte kvadratek pred ustreznim odgovorom)."]
[null,null,"brošure, reklamni letaki"]
[null,null,"center za socialno delo"]
[null,null,"drug (socialnovarstveni) program"]
[null,null,"drugi mediji (TV, časopis, radio)"]
[null,null,"internet"]
[null,null,"svojci, prijatelji, znanci"]
[null,null,"šola, vrtec ali druga vzgojno-izobraževalna ustanova"]
[null,null,"zdravstveni dom"]
[null,null,"drugo (prosimo, vpišite):"]

{"sheet":"PODPROGRAMI","index":3,"n_rows":17,"n_cols":5,"rows_kept":17,"cut":false,"hidden":true,"merged":[[0,0,0,9],[2,1,2,8],[15,1,15,4]]}
["VSEBINSKO POROČILO - PODPROGRAMI - za obdobje od 1. 1. 2021 do 31. 12. 2021"]
[]
[1,"Če v okviru programa izvajate podprograme (npr. predavanja, e-svetovanje, skupina za starše ipd.), ki niso del glavnega programa, prosimo navedite število uporabnikov za vsak podprogram posebej. V podprogramih, kjer beležite število uporabnikov, izpolnite 2. in 4. stolpec. V podprogramih, kjer beležite le število izvajanj, izpolnite le stolpec 3. Če beležite opravljene storitve in NE števila uporabnikov (npr. telefonski klici), posebej poudarite ali gre za storitev ali uporabnika."]
[null,"Podprogram","Število različnih uporabnikov","Število storitev","Povprečno število ur vključenosti enega uporabnika na mesec/pri telefonskih klicih navedite povprečni čas pogovora"]
[]
[]
[]
[]
[]
[]
[]
[]
[]
[]
[]
[null,"po potrebi vstavite vrstice"]
[null,"Skupaj",{"$f":"SUM(C5:C16)","v":0},{"$f":"SUM(D5:D16)","v":0},{"$f":"SUM(E5:E16)","v":0}]

{"sheet":"KADRI","index":4,"n_rows":77,"n_cols":8,"rows_kept":77,"cut":false,"hidden":true,"merged":[[0,0,0,9],[2,1,2,8],[33,1,33,8],[74,1,74,8],[51,1,51,2],[53,1,53,8],[71,1,71,8],[49,1,49,8],[30,1,30,8],[3,7,3,8],[4,7,4,8],[5,7,5,8],[6,7,6,8],[7,7,7,8],[10,7,10,8],[11,7,11,8],[12,7,12,8],[13,7,13,8],[14,7,14,8],[8,7,8,8],[9,7,9,8],[15,7,15,8],[16,7,16,8],[17,7,17,8],[18,7,18,8],[19,7,19,8],[20,7,20,8],[21,7,21,8],[22,7,22,8],[28,7,28,8],[29,7,29,8],[23,7,23,8],[24,7,24,8],[25,7,25,8],[26,7,26,8],[27,7,27,8],[34,3,34,5],[35,3,35,5],[36,3,36,5],[37,3,37,5],[38,3,38,5],[44,3,44,5],[45,3,45,5],[46,1,46,5],[39,3,39,5],[40,3,40,5],[41,3,41,5],[42,3,42,5],[43,3,43,5]]}
["VSEBINSKO POROČILO - KADRI - za obdobje od 1. 1. 2021 do 31. 12. 2021"]
[]
[1,"Prosimo, navedite zaposlene v programu, njihovo smer in stopnjo izobrazbe, delovno mesto, vrsto zaposlitve, število opravljenih ur v programu in vire financiranja zaposlitve. Če je zaposleni v programu sofinanciran iz drugih virov, npr. občine, navedite število ur sofinanciranja za vsak vir posebej."]
[null,"Ime in priimek","Izobrazba\n(smer/ stopnja)","Delovno mesto\n(izberite ustrezen odgovor)","Vrsta zaposlitve\n(izberite ustrezen odgovor)","Skupaj število opravljenih ur, \nne glede na financerja","Število opravljenih ur, financiranih iz MDDSZ","Število opravljenih ur \npo drugih financerjih\n(npr. OBČINA: 1044; FIHO: 500; ZRSZ: 544)"]
[]
[]
[]
[]
[]
[]
[]
[]
[]
[]
[]
[]
[]
[]
[]
[]
[]
[]
[]
[]
[]
[]
[]
[]
[]
[]
[null,"po potrebi vstavite vrstice"]
[]
[]
[2,"Prosimo, navedite še ostale plačane izvajalce programa (študente, zunanje sodelavce ipd.) ter navedite njihovo vrsto pogodbo in vrsto dela."]
[null,"Ime in priimek","Vrsta pogodbe","Vrsta dela"]
[]
[]
[]
[]
[]
[]
[]
[]
[]
[]
[]
[null,"po potrebi vstavite vrstice"]
[]
[]
[3,"Prosimo, navedite število vseh ur, ki so jih opravili prostovoljci v programu. Navedite prostovoljce glede na spol in število opravljenih ur ter opredelite vrsto prostovoljnega dela. V zadnji preglednici prosimo ovrednotite prostovoljce."]
[]
[null,"Skupaj opravljeno število ur prostovoljnega dela"]
[]
[null,"Prosimo, navedite število prostovoljcev po spolu:"]
[null,"Število žensk"]
[null,"Število moških"]
[null,"Skupaj število prostovoljcev",{"$f":"C55+C56","v":0}]
[]
[null,"Število opravljenih ur","Število prostovoljcev"]
[null,"0 do 24 ur"]
[null,"25 do 100 ur"]
[null,"101 do 500 ur"]
[null,"501 ur in več"]
[null,"Skupaj število prostovoljcev",{"$f":"SUM(C60:C63)","v":0}]
[]
[null,"Vrsta dela glede na določila Zakona o prostovoljstvu*","Število prostovoljcev"]
[null,"organizacijsko delo"]
[null,"strokovno delo - na področju socialnega varstva"]
[null,"strokovno delo - drugo"]
[null,"drugo delo"]
[null,"Skupaj število prostovoljcev",{"$f":"SUM(C67:C70)","v":0}]
[null,"Opomba:\n* Zakon o prostovoljstvu (Uradni list RS, število 10/11, 16/11 – popr. in 82/15), 23.a člen, vrste prostovoljskega dela:\n(1) Vrste prostovoljskega dela iz druge alineje drugega odstavka 23. člena so: organizacijsko delo, ki je opravljanje prostovoljskega dela vodenja projektov in programov, njihova organizacija ali organizacija dela projekta ali programa in opravljanje mentorstva prostovoljcem; vsebinsko delo, ki je opravljanje prostovoljskega dela, za izvajanje katerega so potrebna posebna znanja in veščine ali pa gre za osnovno prostovoljsko delo posameznega programa ali projekta. Posebna znanja in veščine so znanja in veščine, ki jih prostovoljec pridobi v vzgojno izobraževalnem sistemu ali na usposabljanju prostovoljske organizacije; drugo delo, ki je opravljanje prostovoljskega dela kot pomožnega dela ali dela za podporo prostovoljskemu programu ali projektu ali dela za opravljanje katerega ni potrebno posebno usposabljanje."]
[]
[]
[4,"Če prostovoljci prejemajo denarno nagrado, prosimo navedite višino nagrade (plačilo na uro) in skupni znesek, ki je bil porabljen v ta namen:"]
[null,"Višina nagrade na uro"]
[null,"Skupni znesek"]

{"sheet":"FINANCE","index":5,"n_rows":93,"n_cols":9,"rows_kept":93,"cut":false,"hidden":true,"merged":[[55,1,55,2],[62,1,62,2],[56,1,56,2],[60,1,60,2],[8,7,8,8],[22,1,22,8],[27,4,27,5],[60,4,60,5],[18,1,18,2],[8,1,8,2],[27,1,27,2],[33,1,33,2],[34,1,34,2],[28,1,28,2],[29,1,29,2],[30,1,30,2],[0,0,0,9],[2,0,2,9],[92,0,92,9],[4,1,4,8],[7,1,7,8],[26,1,26,8],[8,5,8,6],[21,1,21,2],[23,1,23,2],[13,1,13,2],[14,1,14,2],[15,1,15,2],[16,1,16,2],[17,1,17,2],[9,1,9,2],[36,1,36,2],[88,1,88,2],[70,1,70,2],[71,1,71,2],[80,1,80,2],[81,1,81,2],[87,1,87,5],[78,1,78,5],[72,1,72,5],[86,1,86,2],[73,1,73,2],[79,1,79,2],[64,1,64,2],[65,1,65,2],[66,1,66,2],[67,1,67,2],[69,1,69,2],[68,1,68,5],[31,1,31,2],[32,1,32,2],[10,1,10,2],[11,1,11,2],[8,3,8,4],[12,1,12,2],[19,1,19,2],[20,1,20,2],[47,1,47,2],[35,1,35,5],[54,1,54,5],[45,1,45,5],[39,1,39,5],[37,1,37,2],[38,1,38,2],[40,1,40,2],[41,1,41,2],[52,1,52,2],[53,1,53,2],[42,1,42,2],[43,1,43,2],[44,1,44,2],[46,1,46,2],[89,1,89,2],[48,1,48,2],[49,1,49,2],[50,1,50,2],[51,1,51,2],[83,1,83,2],[84,1,84,2],[85,1,85,2],[74,1,74,2],[75,1,75,2],[76,1,76,2],[77,1,77,2],[82,1,82,2],[63,1,63,2],[61,1,61,2],[59,1,59,8]]}
["FINANČNO POROČILO - za obdobje od 1. 1. 2021 do 31. 12. 2021"]
[]
["OPOZORILO! Listine (račune, izplačilni liste, itd.), iz katerih je razvidno, da so bila sredstva porabljena namensko za izvajanje programa, hranite za morebitni nadzor programa.\nPri izpolnjevanju bodite pozorni, da se vsi podatki, ki jih vpisujete, nanašajo na obdobje od 1. 1. 2021 do 31. 12. 2021.\n!!! Prosimo, bodite pozorni, da ne bo prihajalo do dvojenga sofinanciranja (koriščenje ukrepov zaradi epidemije)."]
[]
[1,"Prosimo, navedite skupni odstotek prihodkov, pridobljenih od drugih sofinancerjev programa (% od celotne vrednosti programa)."]
[]
[]
[null,"Prosimo, navedite vire financiranja oz. vse sofinancerje programa, odobrena sredstva za izvajanje programa ter višino sredstev. "]
[null,"PRIHODKI PROGRAMA",null,"Vsa zaprošena sredstva",null,"Vsa prejeta sredstva",null,"Dejanska prejeta sredstva na podlagi priloženih dokazil"]
[null,"Sofinancer programa",null,"Znesek v EUR","V odstotkih","Znesek v EUR","V odstotkih","Znesek v EUR","V odstotkih"]
[null,"MDDSZ",null,null,{"$f":"D11/$D$24","v":{"$error":"#DIV/0!"}},null,{"$f":"F11/$F$24","v":{"$error":"#DIV/0!"}}]
[null,"Občine (seštejte znesek vseh občin skupaj)",null,null,{"$error":"#DIV/0!"},null,{"$error":"#DIV/0!"},null,{"$f":"H12/$F$24","v":{"$error":"#DIV/0!"}}]
[null,"Donacije",null,null,{"$error":"#DIV/0!"},null,{"$error":"#DIV/0!"},null,{"$f":"H13/$F$24","v":{"$error":"#DIV/0!"}}]
[null,"FIHO",null,null,{"$error":"#DIV/0!"},null,{"$error":"#DIV/0!"},null,{"$error":"#DIV/0!"}]
[null,"ZRSZ",null,null,{"$error":"#DIV/0!"},null,{"$error":"#DIV/0!"},null,{"$error":"#DIV/0!"}]
[null,"Drugi proračunski viri skupaj (navedite: _____)",null,null,{"$error":"#DIV/0!"},null,{"$error":"#DIV/0!"},null,{"$error":"#DIV/0!"}]
[null,"Uporabniki",null,null,{"$error":"#DIV/0!"},null,{"$error":"#DIV/0!"},null,{"$error":"#DIV/0!"}]
[null,"Članarine",null,null,{"$error":"#DIV/0!"},null,{"$error":"#DIV/0!"},null,{"$error":"#DIV/0!"}]
[null,"Lastna sredstva",null,null,{"$error":"#DIV/0!"},null,{"$error":"#DIV/0!"},null,{"$error":"#DIV/0!"}]
[null,"Ovrednoteno prostovoljsko delo",null,null,{"$error":"#DIV/0!"},null,{"$error":"#DIV/0!"},null,{"$error":"#DIV/0!"}]
[null,"Brezplačen najem prostorov",null,null,{"$error":"#DIV/0!"},null,{"$error":"#DIV/0!"},null,{"$error":"#DIV/0!"}]
[null,"Drugo (navedite: _____)",null,null,{"$error":"#DIV/0!"},null,{"$error":"#DIV/0!"},null,{"$f":"H22/$F$24","v":{"$error":"#DIV/0!"}}]
[null,"po potrebi vstavite vrstice in prekopirajte formule za preračun"]
[null,"SKUPAJ",null,{"$f":"SUM(D11:D23)","v":0},{"$error":"#DIV/0!"},0,{"$error":"#DIV/0!"},0,{"$error":"#DIV/0!"}]
[]
[]
[2,"Prosimo, navedite vse odhodke programa. Po potrebi dodajte vrstice, še posebej, če imate več različnih stroškov pri odhodkih. "]
[null,"ODHODKI PROGRAMA",null,"Znesek v EUR","V odstotkih"]
[null,"1. Stroški dela redno zaposlenih ",null,{"$f":"SUM(D30:D35)","v":0},null,{"$f":"D29/$D$57","v":{"$error":"#DIV/0!"}}]
[null," - plače zaposlenih ",null,null,{"$f":"D30/$D$57","v":{"$error":"#DIV/0!"}}]
[null,"- delodajalčeve dajatve za socialno varnost",null,null,{"$error":"#DIV/0!"}]
[null,"- regres za letni dopust",null,null,{"$error":"#DIV/0!"}]
[null,"- prevoz na delo",null,null,{"$error":"#DIV/0!"}]
[null,"- stroški prehrane",null,null,{"$error":"#DIV/0!"}]
[null,"- jubilejne nagrade",null,null,{"$error":"#DIV/0!"}]
[null,"po potrebi vstavite vrstice in prekopirajte formule za preračun"]
[null,"2. Stroški zunanjih izvajalcev, vezanih neposredno na program ",null,{"$f":"SUM(D38:D39)","v":0},null,{"$f":"D37/$D$57","v":{"$error":"#DIV/0!"}}]
[null,"- delo na podlagi pogodb",null,null,{"$f":"D38/$D$57","v":{"$error":"#DIV/0!"}}]
[null,"- strošek študentskega dela",null,null,{"$f":"D39/$D$57","v":{"$error":"#DIV/0!"}}]
[null,"po potrebi vstavite vrstice in prekopirajte formule za preračun"]
[null,"3. Povračilo stroškov v zvezi z delom na programu za prostovoljce na osnovi sklenjenih dogovorov",null,{"$f":"SUM(D42:D45)","v":0},null,{"$f":"D41/$D$57","v":{"$error":"#DIV/0!"}}]
[null,"- nagrade prostovoljcem",null,null,{"$f":"D42/$D$57","v":{"$error":"#DIV/0!"}}]
[null,"- potni stroški za prostovoljce",null,null,{"$f":"D43/$D$57","v":{"$error":"#DIV/0!"}}]
[null,"- stroški prehrane za prostovoljce",null,null,{"$f":"D44/$D$57","v":{"$error":"#DIV/0!"}}]
[null,"- drugi stroški za prostovoljce (natančno opredelite te stroške)",null,null,{"$f":"D45/$D$57","v":{"$error":"#DIV/0!"}}]
[null,"po potrebi vstavite vrstice in prekopirajte formule za preračun"]
[null,"4. Stroški materiala ter storitev",null,{"$f":"SUM(D48:D54)","v":0},null,{"$f":"D47/$D$57","v":{"$error":"#DIV/0!"}}]
[null," - energija – elektrika",null,null,{"$f":"D48/$D$57","v":{"$error":"#DIV/0!"}}]
[null,"- ogrevanje prostorov",null,null,{"$error":"#DIV/0!"}]
[null,"- najemnina lokacija 1",null,null,{"$error":"#DIV/0!"}]
[null,"- najemnina lokacija 2",null,null,{"$error":"#DIV/0!"}]
[null,"-supervizija",null,null,{"$error":"#DIV/0!"}]
[null,"- telefonski stroški",null,null,{"$error":"#DIV/0!"}]
[null,"- stroški drugega materiala (natančno opredelite in navedite te stroške)",null,null,{"$error":"#DIV/0!"}]
[null,"po potrebi vstavite vrstice in prekopirajte formule za preračun"]
[null,"Preostanek sredstev",null,{"$f":"F24-D57","v":0}]
[null,"SKUPAJ VSI ODHODKI",null,{"$f":"D29+D37+D41+D47","v":0},{"$f":"SUM(E29:E54)","v":{"$error":"#DIV/0!"}},{"$f":"SUM(F29:F54)","v":{"$error":"#DIV/0!"}}]
[]
[]
[3,"Prosimo, navedite stroške, krite iz sredstev MDDSZ, ki ste jih pridobili preko javnega razpisa za sofinanciranje programov socialnega varstva. Po potrebi dodajte vrstice, še posebej, če imate več različnih stroškov pri odhodkih iz sredstev MDDSZ."]
[null,"ODHODKI PROGRAMA",null,"Znesek v EUR","V odstotkih"]
[null,"1. Stroški dela redno zaposlenih ",null,{"$f":"SUM(D63:D68)","v":0},null,{"$f":"D62/$D$90","v":{"$error":"#DIV/0!"}}]
[null," - plače zaposlenih ",null,null,{"$f":"D63/$D$90","v":{"$error":"#DIV/0!"}}]
[null,"- delodajalčeve dajatve za socialno varnost",null,null,{"$error":"#DIV/0!"}]
[null,"- regres za letni dopust",null,null,{"$error":"#DIV/0!"}]
[null,"- prevoz na delo",null,null,{"$error":"#DIV/0!"}]
[null,"- stroški prehrane",null,null,{"$error":"#DIV/0!"}]
[null,"- jubilejne nagrade",null,null,{"$error":"#DIV/0!"}]
[null,"po potrebi vstavite vrstice in prekopirajte formule za preračun"]
[null,"2. Stroški zunanjih izvajalcev, vezanih neposredno na program ",null,{"$f":"SUM(D71:D72)","v":0},null,{"$f":"D70/$D$90","v":{"$error":"#DIV/0!"}}]
[null,"- delo na podlagi pogodb",null,null,{"$f":"D71/$D$90","v":{"$error":"#DIV/0!"}}]
[null,"- strošek študentskega dela",null,null,{"$f":"D72/$D$90","v":{"$error":"#DIV/0!"}}]
[null,"po potrebi vstavite vrstice in prekopirajte formule za preračun"]
[null,"3. Povračilo stroškov v zvezi z delom na programu za prostovoljce na osnovi sklenjenih dogovorov",null,{"$f":"SUM(D75:D78)","v":0},null,{"$f":"D74/$D$90","v":{"$error":"#DIV/0!"}}]
[null,"- nagrade prostovoljcem",null,null,{"$f":"D75/$D$90","v":{"$error":"#DIV/0!"}}]
[null,"- potni stroški za prostovoljce",null,null,{"$f":"D76/$D$90","v":{"$error":"#DIV/0!"}}]
[null,"- stroški prehrane za prostovoljce",null,null,{"$error":"#DIV/0!"}]
[null,"- drugi stroški za prostovoljce (natančno opredelite te stroške)",null,null,{"$error":"#DIV/0!"}]
[null,"po potrebi vstavite vrstice in prekopirajte formule za preračun"]
[null,"4. Stroški materiala ter storitev",null,{"$f":"SUM(D81:D87)","v":0},null,{"$f":"D80/$D$90","v":{"$error":"#DIV/0!"}}]
[null," - energija – elektrika",null,null,{"$f":"D81/$D$90","v":{"$error":"#DIV/0!"}}]
[null,"- ogrevanje prostorov",null,null,{"$f":"D82/$D$90","v":{"$error":"#DIV/0!"}}]
[null,"- najemnina lokacija 1",null,null,{"$error":"#DIV/0!"}]
[null,"- najemnina lokacija 2",null,null,{"$error":"#DIV/0!"}]
[null,"-supervizija",null,null,{"$error":"#DIV/0!"}]
[null,"- telefonski stroški",null,null,{"$error":"#DIV/0!"}]
[null,"- stroški drugega materiala (natančno opredelite in navedite te stroške)",null,null,{"$error":"#DIV/0!"}]
[null,"po potrebi vstavite vrstice in prekopirajte formule za preračun"]
[null,"Preostanek sredstev",null,{"$f":"F11-D90","v":0}]
[null,"SKUPAJ VSI ODHODKI",null,{"$f":"D62+D70+D74+D80","v":0},{"$f":"SUM(E62:E87)","v":{"$error":"#DIV/0!"}},{"$f":"SUM(F62:F87)","v":{"$error":"#DIV/0!"}}]
[]
[]
["Obvezne priloge\nPriložite dokazila o 20-odstotnem sofinanciranju programa v letu 2021 (pogodbe o sofinanciranju, sklepi o sofinanciranju, ipd.)."]

{"sheet":"POTREBE","index":6,"n_rows":21,"n_cols":3,"rows_kept":21,"cut":false,"hidden":true,"merged":[[20,2,20,7],[16,2,16,7],[11,2,11,7],[6,2,6,7],[0,0,0,8],[2,1,2,7]]}
["VSEBINSKO POROČILO - POTREBE - za obdobje od 1. 1. 2021 do 31. 12. 2021"]
[]
[1,"Prosimo, odgovorite na spodnja vprašanja, ki se nanašajo na POTREBE uporabnikov:"]
[null,null,"izberite ustrezen odgovor"]
[null,"Ali ste v letu 2021 zavrnili kakšno osebo, ki je izrazila željo po vključitvi v program?"]
[null,"Če DA: Koliko oseb ste zavrnili?"]
[null,"Prosimo, vpišite razloge za zavrnitve."]
[]
[null,null,"izberite ustrezen odgovor"]
[null,"Ali ste v letu 2021 zavrnili kakšno osebo, ki je bila napotena s CSD oz. drugih institucij?"]
[null,"Če DA: Koliko oseb ste zavrnili?"]
[null,"Prosimo, vpišite razloge za zavrnitve."]
[]
[null,null,"izberite ustrezen odgovor"]
[null,"Ali ocenjujete, da so v okolju, kjer izvajate program, tudi osebe, ki bi se lahko vključile v program, pa se vanj iz različnih razlogov ne vključijo?"]
[null,"Če DA: Koliko je po vaši oceni takšnih uporabnikov?"]
[null,"Prosimo, pojasnite, na kakšen način ste prišli do ocene."]
[]
[null,null,"izberite ustrezen odgovor"]
[null,"Ali menite, da določeni programi - glede na potrebe uporabnikov - manjkajo v slovenskem prostoru?"]
[null,"Če DA: Kakšni programi so to po vašem mnenju, izkušnjah in opažanjih? Prosimo, navedite, ne glede ali so to programi iz vašega področja ali iz drugih, kjer vidite manko."]

{"sheet":"NAVODILA EVAPRO","index":7,"n_rows":23,"n_cols":5,"rows_kept":23,"cut":false,"hidden":true,"merged":[[12,1,13,1],[13,2,13,7],[22,4,22,7],[0,0,0,8],[4,1,4,7],[22,1,22,3],[2,1,2,7],[6,2,6,7],[7,2,7,7],[8,2,8,7],[17,2,17,7],[16,1,16,7],[11,1,11,7],[21,4,21,7],[21,1,21,3],[20,1,20,7],[5,2,5,7],[12,2,12,7]]}
["EVAPRO - POMOČ PRI IZPOLNJEVANJU"]
[]
[null,"Prosimo, za lažje izpolnjevenje sledite navodilom, katere tabele iz aplikacije EVAPRO© lahko skopirate oz. prilepite v obrazec:"]
[]
[null,"Zavihek: UPORABNIKI"]
[null,"VPR. 1","Podatke o prvih štiri alinejah: »Skupaj število različnih uporabnikov«; »Število uporabnikov v t. i. GLAVNEM programu«; »...od tega uporabnikov ŽENSKEGA SPOLA« in »Število uporabnikov v PODPROGRAMIH« - Lahko uporabite izpis iz aplikacije EVAPRO©, rubrika »vsi uporabniki« v sklopu \"pregledi\" s pomočjo rdeče tipke »razširi filter«, kjer izberete spol in postopke (podprograme)."]
[null,"VPR. 2","Povprečno število ur aktivne vključenosti enega uporabnika na mesec - Lahko uporabite izpis iz aplikacije EVAPRO©, rubrika v sklopu \"vključenost uporabnikov\", stolpca  \"Število vključenih uporabnikov - skupaj\" in \"Povprečno število ur vključenosti - skupaj\"."]
[null,"VPR. 3","Mladoletni uporabniki - Lahko uporabite izpis iz aplikacije EVAPRO©, rubrika v sklopu \"poročila\" z imenom »po star. skupinah«, rdeča tipka \"razširi filter\", s katero lahko v rubriki \"leta starosti\" oblikujete to poročilo (v parametre vstavite vrednosti 15, 18). "]
[null,"VPR. 4","Število uporabnikov glede na čas/obdobje njihove vključitve v program - Lahko uporabite izpis iz aplikacije EVAPRO©, rubrika v sklopu \"poročila\" z imenom »upor. glede na čas«."]
[]
[]
[null,"Zavihek: KADRI"]
[null,"VPR. 4","Skupaj opravljeno število ur prostovoljnega dela - Lahko uporabite izpis iz aplikacije EVAPRO©, rubrika \"postopki\" v sklopu \"poročila\",  uporabite rdečo tipko \"razširi filter\" in označite status izvajalca kot \"prostovoljec\". Spodaj v tabeli se izpiše število ur."]
[null,null,"Število prostovoljcev po spolu: - Lahko uporabite izpis iz aplikacije EVAPRO©, rubrika \"postopki\" v sklopu \"poročila\",  uporabite rdečo tipko\"razširi filter\" in označite status izvajalca kot \"prostovoljec\" ter označite spol. Spodaj v tabeli se izpiše skupno število prostovoljcev oz. število prostovoljcev po spolu."]
[]
[]
[null,"Zavihek: EVALVACIJA"]
[null,"VPR. 4","Prosimo, prilepite oz. prekopirajte izpis izvedenih postopkov iz aplikacije EVAPRO©, rubrika v sklopu \"poročila\" z imenom »postopki«."]
[]
[]
[null,"Zavihek: KAPACITETE"]
[null,"Programi za prepovedane droge – visoki prag, \nalkoholizem, stanovanjske skupine, namestitveni programi, programi za spodbujanje socialne vključenosti in neodvisnega življenja invalidov",null,null,"Prilepite oz. prekopirajte izpis o uporabnikih/nočitvah iz aplikacije EVAPRO©, rubrika v sklopu \"poročila\" z imenom z imenom »zasedenost ležišč«."]
[null,"Programi materinskih domov, \nvarnih hiš, zatočišč in kriznih centrov",null,null,"Prilepite oz. prekopirajte izpis o uporabnikih/nočitvah iz aplikacije EVAPRO©, rubrika v sklopu \"poročila\" z imenom z imenom »zasedenost sob«."]

{"sheet":"EVALVACIJA","index":8,"n_rows":38,"n_cols":8,"rows_kept":38,"cut":false,"hidden":true,"merged":[[8,1,8,3],[9,1,9,3],[10,1,10,3],[11,1,11,3],[12,1,12,3],[13,1,13,3],[14,1,14,3],[15,1,15,3],[16,1,16,3],[3,4,3,7],[4,4,4,7],[5,4,5,7],[6,4,6,7],[7,4,7,7],[8,4,8,7],[9,4,9,7],[10,4,10,7],[11,4,11,7],[12,4,12,7],[13,4,13,7],[14,4,14,7],[3,1,3,3],[4,1,4,3],[5,1,5,3],[6,1,6,3],[7,1,7,3],[28,1,28,4],[29,1,29,4],[30,1,30,4],[15,4,15,7],[16,4,16,7],[17,1,17,7],[0,0,0,8],[37,3,37,4],[36,1,36,7],[2,1,2,8],[21,1,21,4],[22,1,22,4],[19,1,19,8],[32,1,32,4],[33,1,33,4],[20,1,20,4],[25,1,25,4],[31,1,31,4],[23,1,23,4],[24,1,24,4],[26,1,26,4],[27,1,27,4]]}
["EVALVACIJSKI DEL - za obdobje od 1. 1. 2021 do 31. 12. 2021"]
[]
[1,"Prosimo, navedite in opišite cilje, ki jim sledite v vašem programu."]
[null,"Cilj",null,null,"Obrazložitev cilja"]
[]
[]
[]
[]
[]
[]
[]
[]
[]
[]
[]
[]
[]
[null,"po potrebi vstavite vrstice"]
[]
[2,"Prosimo, vpišite število izpolnjenih vprašalnikov po posameznem tipu vprašalnika."]
[null,"Tip vprašalnika\n(izberite iz spustnega seznama)",null,null,null,"Število izpolnjenih vprašalnikov"]
[]
[]
[]
[]
[]
[]
[]
[]
[null,"Drugo (prosimo, vpišite):"]
[null,"Drugo (prosimo, vpišite):"]
[null,"Drugo (prosimo, vpišite):"]
[null,"Drugo (prosimo, vpišite):"]
[null,"Drugo (prosimo, vpišite):"]
[]
[]
[3,"Prosimo, prilepite oz. prekopirajte izpis izvedenih postopkov iz aplikacije EVAPRO©, rubrika v sklopu \"poročila\" z imenom »postopki«."]
[null,"Šifra postopka","Ime postopka","Porabljen čas",null,"Število izvajanj","Število izvajalcev","Števillo uporabnikov"]

{"sheet":"KAPACITETE 1","index":9,"n_rows":20,"n_cols":8,"rows_kept":20,"cut":false,"hidden":true,"merged":[[0,0,0,8],[2,0,2,6]]}
["EVALVACIJSKI DEL - IZPIS KAPACITET - za obdobje od 1. 1. 2020 do 31. 12. 2020"]
[]
["Prosimo, prilepite oz. prekopirajte izpis o uporabnikih/nočitvah iz aplikacije EVAPRO©, rubrika v sklopu \"poročila\" z imenom z imenom »zasedenost ležišč«."]
[]
["Obdobje","Razpoložljiva ležišča","Skupaj","Polnoletni","Mladoletni","Neznan datum rojstva","Rezervirana ležišča","Zasedenost v %*"]
["Januar"]
["Februar"]
["Marec"]
["April"]
["Maj"]
["Junij"]
["Julij"]
["Avgust"]
["September"]
["Oktober"]
["November"]
["December"]
["Povprečje 1. 1. - 30. 6."]
["Povprečje 1. 7. - 31. 12."]
["Povprečje 1. 1. - 31. 12."]

{"sheet":"KAPACITETE 2","index":10,"n_rows":20,"n_cols":7,"rows_kept":20,"cut":false,"hidden":true,"merged":[[0,0,0,7],[2,0,2,6]]}
["EVALVACIJSKI DEL - IZPIS KAPACITET - za obdobje od 1. 1. 2021 do 31. 12. 2021"]
[]
["Prosimo, prilepite oz. prekopirajte izpis o uporabnikih/nočitvah iz aplikacije EVAPRO©, rubrika v sklopu \"poročila\" z imenom z imenom »zasedenost sob«."]
[]
["Obdobje","Razpoložljive sobe","Skupaj","Ženske","Otroci","Rezervirane sobe","Zasedenost v %*"]
["Januar"]
["Februar"]
["Marec"]
["April"]
["Maj"]
["Junij"]
["Julij"]
["Avgust"]
["September"]
["Oktober"]
["November"]
["December"]
["Povprečje 1. 1. - 30. 6."]
["Povprečje 1. 7. - 31. 12."]
["Povprečje 1. 1. - 31. 12."]

{"sheet":"matrika","index":11,"n_rows":21,"n_cols":20,"rows_kept":21,"cut":false,"hidden":true,"merged":[[0,9,0,13],[0,17,0,18]]}
["področje","podpodročje1","podpodročje2","podpodročje3","podpodročje4","podpodročje5","podpodročje6",null,null,"zavihki, ki se morajo prikazati za to podpodročje",null,null,null,null,"IF korak 3","IF korak 3",null,"IF korak \"3 = DA\" + IF korak \"2\" - ena od spodnjih opcij",null,"prikaži list KAPACITETE"]
["NASILJE","MATERINSKI DOMOVI","VARNE HIŠE, ZATOČIŠČA IN KRIZNI CENTRI","SVETOVALNICE","PROGRAMI PREVENTIVE","PROGRAMI TELEFONSKEGA SVETOVANJA",null,null,null,"navodila","splošno","vsebina","finance","opombe","vsebina in evalvacija","postopki",null,"MATERINSKI DOMOVI","VARNE HIŠE, ZATOČIŠČA IN KRIZNI CENTRI","kapacitete 2"]
["ZASVOJENI","PREPOVEDANE DROGE – VISOKI PRAG","PREPOVEDANE DROGE - NIZKI PRAG","PREPOVEDANE DROGE – PREVENTIVNI PROGRAMI","ALKOHOLIZEM","MOTNJE HRANJENJA","PREPREČEVANJE PREKOMERNE RABE IKT",null,null,"navodila","splošno","vsebina","finance","opombe","vsebina in evalvacija","postopki",null,"PREPOVEDANE DROGE – VISOKI PRAG","ALKOHOLIZEM","kapacitete 1"]
["DUŠEVNO_ZDRAVJE","STANOVANJSKE SKUPINE","DNEVNI CENTRI","INFORMACIJSKE PISARNE IN SVETOVALNICE","PROGRAMI TELEFONSKEGA SVETOVANJA","ZAGOVORNIŠTVO",null,null,null,"navodila","splošno","vsebina","finance","opombe","vsebina in evalvacija","postopki",null,"STANOVANJSKE SKUPINE",null,"kapacitete 1"]
["BREZDOMCI","NAMESTITVENI PROGRAMI","DNEVNI PROGRAMI","DELOŽACIJE",null,null,null,null,null,"navodila","splošno","vsebina","finance","opombe","vsebina in evalvacija","postopki",null,"NAMESTITVENI PROGRAMI",null,"kapacitete 1"]
["OTROCI_MLADOSTNIKI","DNEVNI CENTRI ZA OTROKE IN MLADOSTNIKE S PREVENTIVNIM DELOM IN SVETOVANJEM","PREVENTIVNI PROGRAMI","PROGRAMI TELEFONSKEGA SVETOVANJA",null,null,null,null,null,"navodila","splošno","vsebina","finance","opombe","vsebina in evalvacija","postopki"]
["STAREJŠI","MEDGENERACIJSKA SREDIŠČA","PROGRAMI ZA STAREJŠE","PROGRAMI ZA OSEBE Z DEMENCO IN NJIHOVE SVOJCE",null,null,null,null,null,"navodila","splošno","vsebina","finance","opombe","vsebina in evalvacija","postopki"]
["INVALIDI","PROGRAMI OSEBNE ASISTENCE IN MREŽE SPREMLJEVALCEV","PROGRAMI ZA SPODBUJANJE SOCIALNE VKLJUČENOSTI IN NEODVISNEGA ŽIVLJENJA INVALIDOV",null,null,null,null,null,null,"navodila","splošno","vsebina","finance","opombe","vsebina in evalvacija","postopki",null,"PROGRAMI ZA SPODBUJANJE SOCIALNE VKLJUČENOSTI IN NEODVISNEGA ŽIVLJENJA INVALIDOV",null,"kapacitete 1"]
["PSIHOSOCIALNA_POMOČ","SPECIALIZIRANI PROGRAMI PSIHOSOCIALNE POMOČI OTROKOM, ODRASLIM ALI DRUŽINAM",null,null,null,null,null,null,null,"navodila","splošno","vsebina","finance","opombe","vsebina in evalvacija","postopki"]
["ROMI","PROGRAMI ZA ROME",null,null,null,null,null,null,null,"navodila","splošno","vsebina","finance","opombe","vsebina in evalvacija","postopki"]
["DRUGI_PROGRAMI","DRUGI PROGRAMI",null,null,null,null,null,null,null,"navodila","splošno","vsebina","finance","opombe","vsebina in evalvacija","postopki"]
[]
[]
[]
["Dokumentacija o programu"]
["Dokumentacija za uporabnike"]
["Vprašalnik za uporabnike ob vstopu"]
["Vprašalnik za uporabnike ob evalvaciji /izstopu iz programa"]
["Vprašalnik za uporabnike po razgovoru oz. Vprašalnik o svetovalnem pogovoru"]
["Vprašalnik za oceno programa oz. Vprašalnik ocena programa za anonimne uporabnike"]
["Vprašalnik o oceni programa za svojce"]

{"sheet":"DRUGO","index":12,"n_rows":28,"n_cols":6,"rows_kept":28,"cut":false,"hidden":true,"merged":[[19,5,19,6],[20,1,20,4],[20,5,20,6],[24,1,24,8],[23,1,23,8],[28,1,28,8],[0,0,0,9],[27,1,27,8],[2,1,2,8],[3,1,3,8],[13,1,13,3],[14,1,14,3],[11,1,11,3],[12,1,12,3],[6,1,6,8],[7,1,7,8],[17,5,17,6],[18,1,18,4],[18,5,18,6],[10,1,10,8],[19,1,19,4]]}
["VSEBINSKO POROČILO - DRUGO - za obdobje od 1. 1. 2020 do 31. 12. 2020"]
[]
[1,"Prosimo, opredelite, kdaj in v kakšnem obsegu (t. i. »obratovalni čas«) se izvaja program:"]
[]
[]
[]
[2,"Prosimo, navedite cilje oz. načrtovane učinke programa po točkah. "]
[]
[]
[]
[3,"Prosimo, navedite število nočitev in prenočitvenih kapacitet na dan 31. 12., če jih nudite oz. zagotavljate uporabnikom: "]
[null,"Povprečno število nočitev na mesec"]
[null,"Število prenočitvenih kapacitet na dan 31. 12. - število sob"]
[null,"Število formalno priznanih prenočitvenih kapacitet na dan 31. 12. - število postelj"]
[null,"Število dodatnih, rezervnih prenočitvenih kapacitet na dan 31. 12. - število postelj"]
[]
[]
[4,"Kakovost in svet uporabnikov/uporabniški sosvet. Prosimo izberite oz. vpišite ustrezen odgovor:",null,null,null,"izberite ustrezen odgovor"]
[null,"Ali ima vaša organizacija uveden certificiran način upravljanja s kakovostjo? (izberite ustrezen odgovor)\n"]
[null,"Ali v vašem programu deluje svet uporabnikov oz. uporabniški sosvet? (izberite ustrezen odgovor)\n"]
[null,"Če ste označili DA, prosimo vpišite še število srečanj:"]
[]
[]
[5,"Prosimo, opozorite nas na posebnosti in težave pri izvajanju programa, za katere menite, da jih je potrebno upoštevati pri ocenjevanju vašega poročila. Opišite morebitne druge značilnosti programa, ki jih druga vprašanja ne predvidevajo. "]
[]
[]
[]
[6,"Prosimo, navedite morebitne opombe, komentarje, predloge."]

{"sheet":"DRUGO E","index":13,"n_rows":22,"n_cols":6,"rows_kept":22,"cut":false,"hidden":true,"merged":[[14,1,14,4],[14,5,14,6],[17,1,17,8],[18,1,18,8],[22,1,22,8],[0,0,0,9],[2,1,2,8],[3,1,3,8],[11,5,11,6],[21,1,21,8],[6,1,6,8],[7,1,7,3],[8,1,8,3],[11,1,11,4],[12,1,12,4],[12,5,12,6],[13,1,13,4],[13,5,13,6]]}
["VSEBINSKO POROČILO - DRUGO - za obdobje od 1. 1. 2021 do 31. 12. 2021"]
[]
[1,"Prosimo, opredelite, kdaj in v kakšnem obsegu (t. i. »obratovalni čas«) se izvaja program:"]
[]
[]
[]
[2,"Prosimo, navedite število nočitev in prenočitvenih kapacitet na dan 31. 12., če jih nudite oz. zagotavljate uporabnikom: "]
[null,"Število formalno priznanih prenočitvenih kapacitet na dan 31. 12. - število postelj"]
[null,"Število dodatnih, rezervnih prenočitvenih kapacitet na dan 31. 12. - število postelj"]
[]
[]
[3,"Kakovost in svet uporabnikov/uporabniški sosvet. Prosimo izberite oz. vpišite ustrezen odgovor:",null,null,null,"izberite ustrezen odgovor"]
[null,"Ali ima vaša organizacija uveden certificiran način upravljanja s kakovostjo? (izberite ustrezen odgovor)\n"]
[null,"Ali v vašem programu deluje svet uporabnikov oz. uporabniški sosvet? (izberite ustrezen odgovor)\n"]
[null,"Če ste označili DA, prosimo vpišite še število srečanj:"]
[]
[]
[4,"Prosimo, opozorite nas na posebnosti in težave pri izvajanju programa, za katere menite, da jih je potrebno upoštevati pri ocenjevanju vašega poročila. Opišite morebitne druge značilnosti programa, ki jih druga vprašanja ne predvidevajo. "]
[]
[]
[]
[5,"Prosimo, navedite morebitne opombe, komentarje, predloge."]

{"sheet":"matrika_3","index":14,"n_rows":31,"n_cols":13,"rows_kept":31,"cut":false,"hidden":true,"merged":[[0,2,0,7],[0,9,0,11],[1,9,30,9],[1,5,30,5],[1,6,30,6],[1,7,30,7],[1,8,30,8],[1,10,30,10],[1,11,30,11],[26,0,27,0],[1,0,5,0],[1,2,30,2],[1,3,30,3],[1,4,30,4],[12,0,16,0],[6,0,11,0],[17,0,19,0],[20,0,22,0],[23,0,25,0]]}
["področje","podpodročje","vsem se odprejo zavihki",null,null,null,null,null,"IF korak 3 = NE","IF korak 3 = DA",null,null,"IF korak \"3 = DA\" + IF korak \"2\" = izbrano podpodročje"]
["NASILJE","MATERINSKI DOMOVI","navodila","splošno","uporabniki","podprogrami","kadri","finance","drugo","navodila evapro","evalvacija","drugo E","kapacitete 2"]
[null,"VARNE HIŠE, ZATOČIŠČA IN KRIZNI CENTRI",null,null,null,null,null,null,null,null,null,null,"kapacitete 2"]
[null,"SVETOVALNICE"]
[null,"PROGRAMI PREVENTIVE"]
[null,"PROGRAMI TELEFONSKEGA SVETOVANJA"]
["ZASVOJENI","PREPOVEDANE DROGE – VISOKI PRAG",null,"splošno","uporabniki","podprogrami","kadri","finance","drugo",null,"evalvacija","drugo E","kapacitete 1"]
[null,"PREPOVEDANE DROGE - NIZKI PRAG"]
[null,"PREPOVEDANE DROGE – PREVENTIVNI PROGRAMI"]
[null,"ALKOHOLIZEM",null,null,null,null,null,null,null,null,null,null,"kapacitete 1"]
[null,"MOTNJE HRANJENJA"]
[null,"PREPREČEVANJE PREKOMERNE RABE IKT"]
["DUŠEVNO_ZDRAVJE","STANOVANJSKE SKUPINE",null,"splošno","uporabniki","podprogrami","kadri","finance","drugo",null,"evalvacija","drugo E","kapacitete 1"]
[null,"DNEVNI CENTRI"]
[null,"INFORMACIJSKE PISARNE IN SVETOVALNICE"]
[null,"PROGRAMI TELEFONSKEGA SVETOVANJA"]
[null,"ZAGOVORNIŠTVO"]
["BREZDOMCI","NAMESTITVENI PROGRAMI",null,"splošno","uporabniki","podprogrami","kadri","finance","drugo",null,"evalvacija","drugo E","kapacitete 1"]
[null,"DNEVNI PROGRAMI"]
[null,"DELOŽACIJE"]
["OTROCI_MLADOSTNIKI","DNEVNI CENTRI ZA OTROKE IN MLADOSTNIKE S PREVENTIVNIM DELOM IN SVETOVANJEM",null,"splošno","uporabniki","podprogrami","kadri","finance","drugo",null,"evalvacija","drugo E"]
[null,"PREVENTIVNI PROGRAMI"]
[null,"PROGRAMI TELEFONSKEGA SVETOVANJA"]
["STAREJŠI","MEDGENERACIJSKA SREDIŠČA",null,"splošno","uporabniki","podprogrami","kadri","finance","drugo",null,"evalvacija","drugo E"]
[null,"PROGRAMI ZA STAREJŠE"]
[null,"PROGRAMI ZA OSEBE Z DEMENCO IN NJIHOVE SVOJCE"]
["INVALIDI","PROGRAMI OSEBNE ASISTENCE IN MREŽE SPREMLJEVALCEV",null,"splošno","uporabniki","podprogrami","kadri","finance","drugo",null,"evalvacija","drugo E"]
[null,"PROGRAMI ZA SPODBUJANJE SOCIALNE VKLJUČENOSTI IN NEODVISNEGA ŽIVLJENJA INVALIDOV",null,null,null,null,null,null,null,null,null,null,"kapacitete 1"]
["PSIHOSOCIALNA_POMOČ","SPECIALIZIRANI PROGRAMI PSIHOSOCIALNE POMOČI OTROKOM, ODRASLIM ALI DRUŽINAM",null,"splošno","uporabniki","podprogrami","kadri","finance","drugo",null,"evalvacija","drugo E"]
["ROMI","PROGRAMI ZA ROME",null,"splošno","uporabniki","podprogrami","kadri","finance","drugo",null,"evalvacija","drugo E"]
["DRUGI_PROGRAMI","DRUGI PROGRAMI",null,"splošno","uporabniki","podprogrami","kadri","finance","drugo",null,"evalvacija","drugo E"]